Workbook

Sheet Приложение № 2.26
A1: Приложение № 6
A2: к Закону Приднестровской Молдавской Республики
A3: "О внесении изменений и дополнений
A4: в Закон Приднестровской Молдавской Республики
A5: "О республиканском бюджете на 2026 год"
C7: Приложение № 2.26
C8: к Закону Приднестровской Молдавской Республики
C9: "О республиканском бюджете на 2026 год"
A11: Смета расходов на финансирование государственного заказа по обеспечению создания, сопровождения и развития комплекса информационных систем, используемых для реализации государственных функций и предоставления государственных услуг в электронной форме "Электронное Правительство", на 2026 год
A13: № п/п | B13: Наименование | C13: Стоимость сопровожде- ния ГИС, руб. | D13: Стоимость создания ГИС, руб. | E13: Стоимость развития ГИС, руб. | F13: Стоимость ГИС, руб.
A14: Министерство цифрового развития, связи и массовых коммуникаций Приднестровской Молдавской Республики
A15: 1. | B15: Государственная информационная система "Корневой удостоверяющий центр Приднестровской Молдавской Республики" | C15: 81831 | F15: =SUM(C15:E15) -> 81831
A16: 2. | B16: Государственная информационная система "Сеть передачи данных межведомственного электронного взаимодействия Приднестровской Молдавской Республики" | C16: 402695 | F16: 402695
A17: 3. | B17: Государственная информационная система "Система межведомственного обмена данными" | C17: 344394 | F17: 344394
A18: 4. | B18: Государственная информационная система "Межведомственный электронный документооборот" | C18: 733032 | D18: 211558 | E18: 29288 | F18: 973878
A19: 5. | B19: Государственная информационная система "Портал государственных услуг Приднестровской Молдавской Республики" | C19: 371940 | F19: 371940
A20: 6. | B20: Государственная информационная система "Единый реестр государственных услуг" | C20: 86663 | F20: 86663
A21: 7. | B21: Государственная информационная система "Реестр документов разрешительного характера" | C21: 93222 | F21: 93222
A22: 8. | B22: Государственная информационная система "Регистрация юридических лиц "Одно окно" | C22: 68851 | F22: 68851
A23: 9. | B23: Государственная информационная система "Регистрация индивидуальных предпринимателей "Одно окно" | C23: 68851 | F23: 68851
A24: 10. | B24: Государственная информационная система "Государственный земельный кадастр" | C24: 371785 | F24: 371785
A25: 11. | B25: Государственная информационная система "Электронные платежи" | C25: 644821 | D25: 203587 | F25: 848408
A26: 12. | B26: Информационная система "Единый реестр объектов недвижимого имущества и земель" | D26: 55000 | F26: 55000
A27: 13. | B27: Государственная информационная система "Централизованное создание и хранение резервных копий информации органов государственной власти и организаций" | D27: 93000 | F27: =SUM(C27:E27) -> 93000
A28: 14. | B28: Информационная система "Автоматизация питания" | E28: 50200 | F28: =SUM(C28:E28) -> 50200
B29: Информационная система «Государственная электронная почта» | C29: 54510 | F29: 54510
B30: Итого | C30: =C15+C16+C17+C18+C19+C20+C21+C22+C23+C24+C25+C26+C29 -> 3322595 | D30: =D15+D16+D17+D18+D19+D20+D21+D22+D23+D24+D25+D26+D29+D27+D28 -> 563145 | E30: =E15+E16+E17+E18+E19+E20+E21+E22+E23+E24+E25+E26+E29+E27+E28 -> 79488 | F30: =SUM(C30:E30) -> 3965228
A31: Министерство экономического развития Приднестровской Молдавской Республики
A32: 1. | B32: Государственная информационная система "Закупки" | C32: 360879 | E32: 0 | F32: =SUM(C32:E32) -> 360879
A33: 2. | B33: Государственная информационная система "Государственное имущество" | C33: 232942 | E33: 0 | F33: =SUM(C33:E33) -> 232942
B34: Итого | C34: =SUM(C32:C33) -> 593821 | D34: =SUM(D32:D33) -> 0 | E34: =SUM(E32:E33) -> 0 | F34: =SUM(F32:F33) -> 593821
A35: Министерство юстиции Приднестровской Молдавской Республики
A36: 1. | B36: Государственная информационная система "Юридическая литература" | C36: 314766 | D36: 0 | E36: 0 | F36: =C36+D36+E36 -> 314766
B37: Итого | C37: =SUM(C35:C36) -> 314766 | D37: =SUM(D35:D36) -> 0 | E37: =SUM(E35:E36) -> 0 | F37: =SUM(F35:F36) -> 314766
B38: Всего | C38: =C34+C30+C37 -> 4231182 | D38: =D34+D30+D37 -> 563145 | E38: =E34+E30+E37 -> 79488 | F38: =F34+F30+F37 -> 4873815
A40: Примечание.
A41: Разрешить исполнительному органу государственной власти, ответственному за исполнение республиканского бюджета, на основании обоснованных обращений главных распределителей бюджетных средств перераспределять средства в пределах общей стоимости государственного заказа, утвержденного настоящим Приложением
